fUSD/lending_fUSD_20240222
["ID","MTS","AMOUNT","RATE_DAILY","PERIOD"]
[314838767,1708582268588,-500.0,0.0003589,2]
[314838768,1708582268597,-500.0,0.0003589,2]
[314838769,1708582268607,-500.0,0.0003589,2]
[314838770,1708582268616,-1462.74,0.0003589,2]
[314838771,1708582268625,-513.38810701,0.0003589,2]
[314838772,1708582268635,-1534.39,0.0003589,2]
[314838773,1708582268644,-652.04,0.0003589,2]
[314838774,1708582268653,-500.0,0.0003589,2]
[314838775,1708582268663,-500.0,0.0003589,2]
[314838776,1708582268672,-500.0,0.0003589,2]
[314838777,1708582268681,-500.0,0.0003589,2]
[314838778,1708582268690,-725.88,0.0003589,2]
[314838779,1708582268699,-500.0,0.0003589,2]
[314838780,1708582268709,-247.85030234,0.0003589,2]
[314838781,1708582268718,-500.0,0.0003589,2]
[314838782,1708582268727,-500.0,0.0003589,2]
[314838783,1708582268736,-787.62,0.0003589,2]
[314838784,1708582268745,-1440.14,0.0003589,2]
[314838785,1708582268754,-524.74291876,0.0003589,2]
[314838786,1708582268763,-529.98,0.0003589,2]
[314838787,1708582268772,-500.0,0.0003589,2]
[314838788,1708582268782,-8752.49,0.0003589,2]
[314838789,1708582268791,-500.0,0.0003589,2]
[314838790,1708582268800,-507.89838842,0.0003589,14]
[314838791,1708582268809,-500.0,0.0003589,2]
[314838792,1708582268818,-1456.35,0.0003589,2]
[314838793,1708582268828,-500.0,0.0003589,2]
[314838794,1708582268839,-1908.33,0.0003589,2]
[314838795,1708582268849,-500.0,0.0003589,2]
[314838796,1708582268859,-581.95,0.0003589,2]
[314838797,1708582268869,-500.0,0.0003589,2]
[314838798,1708582268878,-500.0,0.0003589,2]
[314838799,1708582268889,-500.0,0.0003589,2]
[314838800,1708582268898,-505.63806369,0.0003589,2]
[314838801,1708582268907,-500.0,0.0003589,2]
[314838802,1708582268918,-500.0,0.0003589,2]
[314838803,1708582268927,-500.0,0.0003589,2]
[314838804,1708582268937,-834.5,0.0003589,2]
[314838805,1708582268946,-500.0,0.0003589,2]
[314838806,1708582268955,-500.0,0.0003589,2]
[314838807,1708582268964,-548.54673161,0.0003589,2]
[314838808,1708582268973,-500.0,0.0003589,2]
[314838809,1708582268983,-3265.95,0.0003589,2]
[314838810,1708582268992,-500.0,0.0003589,2]
[314838811,1708582269002,-515.12176087,0.0003589,2]
[314838812,1708582269011,-500.0,0.0003589,2]
[314838813,1708582269020,-788.67,0.0003589,2]
[314838814,1708582269030,-1505.7,0.0003589,2]
[314838815,1708582269040,-500.0,0.0003589,2]
[314838816,1708582269049,-500.0,0.0003589,2]
[314838817,1708582269058,-500.0,0.0003589,2]
[314838818,1708582269067,-1296.09,0.0003589,2]
[314838819,1708582269077,-789.61,0.0003589,2]
[314838820,1708582269086,-500.0,0.0003589,2]
[314838821,1708582269096,-500.0,0.0003589,2]
[314838822,1708582269105,-500.0,0.0003589,2]
[314838823,1708582269117,-500.0,0.0003589,2]
[314838824,1708582269127,-3030.87,0.0003589,2]
[314838825,1708582269136,-500.0,0.0003589,2]
[314838826,1708582269145,-500.0,0.0003589,2]
[314838827,1708582269155,-1464.06,0.0003589,2]
[314838828,1708582269164,-7198.27,0.0003589,2]
[314838829,1708582269173,-500.0,0.0003589,2]
[314838830,1708582269182,-4119.62,0.0003589,2]
[314838831,1708582269191,-500.0,0.0003589,2]
[314838832,1708582269200,-663.36,0.0003589,2]
[314838833,1708582269211,-1165.56,0.0003589,2]
[314838834,1708582269220,-500.0,0.0003589,2]
[314838835,1708582269229,-500.0,0.0003589,2]
[314838836,1708582269239,-500.0,0.0003589,2]
[314838837,1708582269247,-500.0,0.0003589,2]
[314838838,1708582269256,-16579.42,0.0003589,2]
[314838839,1708582269265,-3023.73,0.0003589,2]
[314838840,1708582269274,-3751.46,0.0003589,2]
[314838841,1708582269283,-1224.6,0.0003589,2]
[314838842,1708582269292,-500.0,0.0003589,2]
[314838843,1708582269301,-500.0,0.0003589,2]
[314838844,1708582269310,-564.07,0.0003589,2]
[314838845,1708582269319,-4740.49,0.0003589,2]
[314838846,1708582269328,-500.0,0.0003589,2]
[314838847,1708582269337,-2550.07,0.0003589,2]
[314838848,1708582269346,-500.0,0.0003589,2]
[314838849,1708582269355,-500.0,0.0003589,2]
[314838850,1708582269366,-7625.44,0.0003589,2]
[314838851,1708582269375,-500.0,0.0003589,2]
[314838852,1708582269384,-500.0,0.0003589,2]
[314838853,1708582269393,-5080.33,0.0003589,2]
[314838854,1708582269401,-758.86,0.0003589,2]
[314838855,1708582269411,-2860.76,0.0003589,2]
[314838856,1708582269420,-500.0,0.0003589,2]
[314838857,1708582269429,-500.0,0.0003589,2]
[314838858,1708582269439,-159.81145744,0.0003589,2]
[314838859,1708582269449,-500.0,0.0003589,2]
[314838860,1708582269458,-561.57,0.0003589,2]
[314838861,1708582269467,-500.0,0.0003589,2]
[314838862,1708582269476,-11560.23,0.0003589,2]
[314838863,1708582269484,-513.98024089,0.0003589,2]
[314838864,1708582269493,-856.02,0.0003589,2]
[314838865,1708582269502,-500.0,0.0003589,2]
[314838866,1708582269511,-500.0,0.0003589,2]
[314838867,1708582269520,-500.0,0.0003589,2]
[314838868,1708582269529,-500.0,0.0003589,2]
[314838869,1708582269539,-555.51,0.0003589,2]
[314838870,1708582269548,-500.0,0.0003589,2]
[314838871,1708582269557,-500.0,0.0003589,2]
[314838872,1708582269566,-516.74766137,0.0003589,2]
[314838873,1708582269575,-2351.99,0.0003589,2]
[314838874,1708582269585,-228.81963955,0.0003589,2]
[314838875,1708582269594,-811.83,0.0003589,2]
[314838876,1708582269603,-994.02,0.0003589,2]
[314838877,1708582269613,-382.03312474,0.0003589,2]
[314838878,1708582269623,-500.0,0.0003589,2]
[314838879,1708582269632,-5813.65,0.0003589,2]
[314838880,1708582269641,-500.0,0.0003589,2]
[314838881,1708582269650,-638.48,0.0003589,2]
[314838882,1708582269659,-500.0,0.0003589,2]
[314838883,1708582269669,-155.36137988,0.0003589,2]
[314838884,1708582269678,-4556.06,0.0003589,2]
[314838885,1708582269687,-1097.36,0.0003589,2]
[314838886,1708582269695,-500.0,0.0003589,2]
[314838887,1708582269704,-500.0,0.0003589,2]
[314838888,1708582269713,-500.0,0.0003589,2]
[314838889,1708582269722,-500.0,0.0003589,2]
[314838890,1708582269730,-8558.23,0.0003589,2]
[314838891,1708582269739,-656.44,0.0003589,2]
[314838892,1708582269748,-500.0,0.0003589,2]
[314838893,1708582269757,-500.0,0.0003589,2]
[314838894,1708582269766,-544.9852888,0.0003589,2]
[314838895,1708582269775,-1603.7,0.0003589,2]
[314838896,1708582269784,-500.0,0.0003589,2]
[314838897,1708582269793,-1931.88,0.0003589,2]
[314838898,1708582269801,-725.17,0.0003589,2]
[314838899,1708582269810,-500.0,0.0003589,2]
[314838900,1708582269819,-905.55,0.0003589,2]
[314838901,1708582269829,-15035.86,0.0003589,2]
[314838902,1708582269840,-500.0,0.0003589,2]
[314838903,1708582269849,-500.0,0.0003589,2]
[314838904,1708582269858,-500.0,0.0003589,2]
[314838905,1708582269868,-500.0,0.0003589,2]
[314838906,1708582269877,-500.0,0.0003589,2]
[314838907,1708582269886,-500.0,0.0003589,2]
[314838908,1708582269895,-22398.6,0.0003589,2]
[314838909,1708582269904,-1715.79,0.0003589,2]
[314838910,1708582269914,-500.0,0.0003589,2]
[314838911,1708582269923,-438.60305365,0.0003589,2]
[314838912,1708582269932,-5021.01,0.0003589,2]
[314838913,1708582269941,-530.39,0.0003589,2]
[314838914,1708582269950,-1898.88,0.0003589,2]
[314838915,1708582269959,-2429.23,0.0003589,2]
[314838916,1708582269968,-500.0,0.0003589,2]
[314838917,1708582269977,-819.31,0.0003589,2]
[314838918,1708582269986,-809.53,0.0003589,2]
[314838919,1708582269995,-500.0,0.0003589,2]
[314838920,1708582270004,-510.38943883,0.0003589,2]
[314838921,1708582270014,-500.0,0.0003589,2]
[314838922,1708582270023,-500.0,0.0003589,2]
[314838923,1708582270032,-754.32,0.0003589,2]
[314838924,1708582270042,-500.0,0.0003589,2]
[314838925,1708582270051,-1172.12,0.0003589,2]
[314838926,1708582270061,-500.0,0.0003589,2]
[314838927,1708582270070,-1143.1,0.0003589,2]
[314838928,1708582270079,-840.05,0.0003589,2]
[314838929,1708582270088,-2877.84,0.0003589,2]
[314838930,1708582270097,-500.0,0.0003589,2]
[314838931,1708582270106,-500.0,0.0003589,2]
[314838932,1708582270116,-500.0,0.0003589,2]
[314838933,1708582270125,-859.67,0.0003589,2]
[314838934,1708582270135,-1875.81,0.0003589,2]
[314838935,1708582270144,-828.35,0.0003589,2]
[314838936,1708582270153,-723.41,0.0003589,2]
[314838937,1708582270162,-1053.73,0.0003589,2]
[314838938,1708582270171,-500.0,0.0003589,2]
[314838939,1708582270180,-500.0,0.0003589,2]
[314838940,1708582270189,-500.0,0.0003589,2]
[314838941,1708582270199,-500.0,0.0003589,2]
[314838942,1708582270208,-291.09096109,0.0003589,2]
[314838943,1708582270217,-516.5684952,0.0003589,2]
[314838944,1708582270228,-500.0,0.0003589,2]
[314838945,1708582270238,-1784.83,0.0003589,2]
[314838946,1708582270248,-4840.98,0.0003589,2]
[314838947,1708582270259,-530.38,0.0003589,2]
[314838948,1708582270269,-514.87,0.0003589,2]
[314838949,1708582270279,-3031.2,0.0003589,2]
[314838950,1708582270290,-500.0,0.0003589,2]
[314838951,1708582270300,-500.0,0.0003589,2]
[314838952,1708582270309,-530.06,0.0003589,2]
[314838953,1708582270319,-873.89,0.0003589,2]
[314838954,1708582270328,-531.76,0.0003589,2]
[314838955,1708582270338,-1826.66,0.0003589,2]
[314838956,1708582270347,-500.0,0.0003589,2]
[314838957,1708582270356,-500.0,0.0003589,2]
[314838958,1708582270367,-500.0,0.0003589,2]
[314838959,1708582270376,-214.17116011,0.0003589,2]
[314838960,1708582270385,-500.0,0.0003589,2]
[314838961,1708582270394,-500.0,0.0003589,2]
[314838962,1708582270403,-500.0,0.0003589,2]
[314838963,1708582270412,-510.54587469,0.0003589,2]
[314838964,1708582270421,-500.0,0.0003589,2]
[314838965,1708582270430,-511.23,0.0003589,2]
[314838966,1708582270439,-500.0,0.0003589,2]
[314838967,1708582270448,-1055.61,0.0003589,2]
[314838968,1708582270457,-500.0,0.0003589,2]
[314838969,1708582270467,-500.0,0.0003589,2]
[314838970,1708582270476,-500.0,0.0003589,2]
[314838971,1708582270485,-500.0,0.0003589,2]
[314838972,1708582270493,-500.0,0.0003589,2]
[314838973,1708582270503,-500.0,0.0003589,2]
[314838974,1708582270512,-500.0,0.0003589,2]
[314838975,1708582270521,-500.0,0.0003589,2]
[314838976,1708582270530,-988.37,0.0003589,2]
[314838977,1708582270539,-500.0,0.0003589,2]
[314838978,1708582270548,-4632.52,0.0003589,2]
[314838979,1708582270557,-500.0,0.0003589,2]
[314838980,1708582270566,-6010.84377613,0.0003589,2]
[314838981,1708582271393,-3998.80622387,0.0003589,2]
[314838982,1708582271403,-584.09,0.0003589,2]
[314838983,1708582271413,-500.0,0.0003589,2]
[314838984,1708582271423,-500.0,0.0003589,2]
[314838985,1708582271432,-823.69,0.0003589,2]
[314838986,1708582271442,-500.0,0.0003589,2]
[314838987,1708582271451,-16197.67,0.0003589,2]
[314838988,1708582271461,-500.0,0.0003589,2]
[314838989,1708582271471,-1734.92,0.0003589,2]
[314838990,1708582271480,-9880.75,0.0003589,2]
[314838991,1708582271490,-11198.19,0.0003589,2]
[314838992,1708582271499,-500.0,0.0003589,2]
[314838993,1708582271509,-500.0,0.0003589,2]
[314838994,1708582271518,-500.0,0.0003589,2]
[314838995,1708582271528,-509.69925623,0.0003589,2]
[314838996,1708582271538,-500.0,0.0003589,2]
[314838997,1708582271547,-500.0,0.0003589,2]
[314838998,1708582271557,-500.0,0.0003589,2]
[314838999,1708582271566,-3167.37,0.0003589,2]
[314839000,1708582271576,-1834.86,0.0003589,2]
[314839001,1708582271586,-500.0,0.0003589,2]
[314839002,1708582271595,-1332.47,0.0003589,2]
[314839003,1708582271604,-3401.61,0.0003589,2]
[314839004,1708582271616,-1368.73,0.0003589,2]
[314839005,1708582271625,-500.0,0.0003589,2]
[314839006,1708582271635,-847.71,0.0003589,2]
[314839007,1708582271645,-500.0,0.0003589,2]
[314839008,1708582271656,-587.21,0.0003589,2]
[314839009,1708582271665,-519.26,0.0003589,2]
[314839010,1708582271675,-500.0,0.0003589,2]
[314839011,1708582271685,-500.0,0.0003589,2]
[314839012,1708582271694,-1454.56,0.0003589,2]
[314839013,1708582271704,-500.0,0.0003589,2]
[314839014,1708582271714,-4157.68,0.0003589,2]
[314839015,1708582271723,-523.61,0.0003589,2]
[314839016,1708582271733,-500.0,0.0003589,2]
[314839017,1708582271743,-2199.66,0.0003589,2]
[314839018,1708582271753,-500.0,0.0003589,2]
[314839019,1708582271763,-2037.07,0.0003589,2]
[314839020,1708582271773,-500.0,0.0003589,2]
[314839021,1708582271783,-5944.8,0.0003589,2]
[314839022,1708582271793,-1328.49,0.0003589,2]
[314839023,1708582271802,-500.0,0.0003589,2]
[314839024,1708582271813,-500.0,0.0003589,2]
[314839025,1708582271822,-661.08,0.0003589,2]
[314839026,1708582271834,-500.0,0.0003589,2]
[314839027,1708582271852,-653.74,0.0003589,2]
[314839028,1708582271863,-518.6472464,0.0003589,2]
[314839029,1708582271873,-500.0,0.0003589,2]
[314839030,1708582271883,-500.0,0.0003589,2]
[314839031,1708582271892,-500.0,0.0003589,2]
[314839032,1708582271902,-976.82,0.0003589,2]
[314839033,1708582271913,-3530.53,0.0003589,2]
[314839034,1708582271922,-1569.29,0.0003589,2]
[314839035,1708582271933,-500.0,0.0003589,2]
[314839036,1708582271942,-500.0,0.0003589,2]
[314839037,1708582271952,-500.0,0.0003589,2]
[314839038,1708582271962,-500.0,0.0003589,2]
[314839039,1708582271971,-5033.7,0.0003589,2]
[314839040,1708582271981,-500.0,0.0003589,2]
[314839041,1708582271991,-3507.46,0.0003589,2]
[314839042,1708582272000,-2075.75,0.0003589,2]
[314839043,1708582272012,-500.0,0.0003589,2]
[314839044,1708582272022,-500.0,0.0003589,2]
[314839045,1708582272031,-500.0,0.0003589,2]
[314839046,1708582272041,-500.0,0.0003589,2]
[314839047,1708582272051,-671.36,0.0003589,2]
[314839048,1708582272061,-500.0,0.0003589,2]
[314839049,1708582272071,-500.0,0.0003589,2]
[314839050,1708582272081,-500.0,0.0003589,2]
[314839051,1708582272091,-1215.64,0.0003589,2]
[314839052,1708582272101,-14545.95,0.0003589,2]
[314839053,1708582272112,-940.61,0.0003589,2]
[314839054,1708582272122,-500.0,0.0003589,2]
[314839055,1708582272132,-500.0,0.0003589,2]
[314839056,1708582272142,-988.61,0.0003589,2]
[314839057,1708582272152,-500.0,0.0003589,2]
[314839058,1708582272161,-500.0,0.0003589,2]
[314839059,1708582272171,-500.0,0.0003589,2]
[314839060,1708582272181,-2871.79,0.0003589,2]
[314839061,1708582272191,-2122.94,0.0003589,2]
[314839062,1708582272201,-500.0,0.0003589,2]
[314839063,1708582272211,-1382.33,0.0003589,2]
[314839064,1708582272220,-500.0,0.0003589,2]
[314839065,1708582272230,-500.0,0.0003589,2]
[314839066,1708582272239,-7639.07,0.0003589,2]
[314839067,1708582272249,-500.0,0.0003589,2]
[314839068,1708582272258,-500.0,0.0003589,2]
[314839069,1708582272268,-500.0,0.0003589,2]
[314839070,1708582272278,-500.0,0.0003589,2]
[314839071,1708582272288,-504.16,0.0003589,2]
[314839072,1708582272298,-500.0,0.0003589,2]
[314839073,1708582272307,-508.31932134,0.0003589,2]
[314839074,1708582272317,-906.15,0.0003589,2]
[314839075,1708582272327,-1446.38,0.0003589,2]
[314839076,1708582272336,-500.0,0.0003589,2]
[314839077,1708582272349,-1790.01,0.0003589,2]
[314839078,1708582272360,-537.21,0.0003589,2]
[314839079,1708582272678,-21241.93,0.0003589,2]
[314839080,1708582272688,-500.0,0.0003589,2]
[314839081,1708582272697,-972.31,0.0003589,2]
[314839082,1708582272706,-1029.76,0.0003589,2]
[314839083,1708582272715,-500.0,0.0003589,2]
[314839084,1708582272724,-500.0,0.0003589,2]
[314839085,1708582272733,-2718.86,0.0003589,2]
[314839086,1708582272743,-1564.91,0.0003589,2]
[314839087,1708582272752,-500.0,0.0003589,2]
[314839088,1708582272761,-500.0,0.0003589,2]
[314839089,1708582272770,-500.00427132,0.0003589,2]
[314839090,1708582272779,-500.0,0.0003589,2]
[314839091,1708582272788,-732.88,0.0003589,2]
[314839092,1708582272797,-500.0,0.0003589,2]
[314839093,1708582272806,-726.71,0.0003589,2]
[314839094,1708582272816,-1161.6,0.0003589,2]
[314839095,1708582272825,-1147.28,0.0003589,2]
[314839096,1708582272834,-1700.89,0.0003589,2]
[314839097,1708582272846,-538.3,0.0003589,2]
[314839098,1708582272855,-5334.28,0.0003589,2]
[314839099,1708582272865,-204.13008038,0.0003589,2]
[314839100,1708582272875,-500.0,0.0003589,2]
[314839101,1708582272885,-251.97265686,0.0003589,2]
[314839102,1708582272894,-795.74,0.0003589,2]
[314839103,1708582272903,-500.0,0.0003589,2]
[314839104,1708582272912,-500.0,0.0003589,2]
[314839105,1708582272923,-500.0,0.0003589,2]
[314839106,1708582272932,-1538.77,0.0003589,2]
[314839107,1708582272941,-638.74,0.0003589,2]
[314839108,1708582272950,-681.78,0.0003589,2]
[314839109,1708582272960,-1641.84,0.0003589,2]
[314839110,1708582272970,-500.0,0.0003589,2]
[314839111,1708582272978,-585.59648416,0.0003589,2]
[314839112,1708582272988,-500.0,0.0003589,2]
[314839113,1708582272997,-1070.38,0.0003589,2]
[314839114,1708582273006,-2763.92,0.0003589,2]
[314839115,1708582273015,-500.0,0.0003589,2]
[314839116,1708582273024,-500.0,0.0003589,2]
[314839117,1708582273034,-500.0,0.0003589,2]
[314839118,1708582273043,-4141.42,0.0003589,2]
[314839119,1708582273053,-500.0,0.0003589,2]
[314839120,1708582273062,-507.3,0.0003589,2]
[314839121,1708582273071,-537.29,0.0003589,2]
[314839122,1708582273080,-500.0,0.0003589,2]
[314839123,1708582273090,-936.82,0.0003589,2]
[314839124,1708582273099,-500.0,0.0003589,2]
[314839125,1708582273108,-887.92,0.0003589,2]
[314839126,1708582273118,-500.0,0.0003589,2]
[314839127,1708582273128,-547.44,0.0003589,2]
[314839128,1708582273137,-7666.99,0.0003589,2]
[314839129,1708582273146,-774.99,0.0003589,2]
[314839130,1708582273155,-1437.7,0.0003589,2]
[314839131,1708582273165,-500.0,0.0003589,2]
[314839132,1708582273174,-1000.0,0.0003589,7]
[314839133,1708582273184,-982.52,0.0003589,2]
[314839134,1708582273193,-500.0,0.0003589,2]
[314839135,1708582273202,-500.0,0.0003589,2]
[314839136,1708582273211,-500.0,0.0003589,2]
[314839137,1708582273221,-1231.22,0.0003589,2]
[314839138,1708582273230,-500.0,0.0003589,2]
[314839139,1708582273240,-1752.93,0.0003589,2]
[314839140,1708582273249,-559.54,0.0003589,2]
[314839141,1708582273259,-1730.78,0.0003589,2]
[314839142,1708582273269,-535.95244845,0.0003589,2]
[314839143,1708582273278,-500.0,0.0003589,2]
[314839144,1708582273287,-549.74,0.0003589,2]
[314839145,1708582273296,-500.0,0.0003589,2]
[314839146,1708582273306,-1551.49,0.0003589,2]
[314839147,1708582273315,-1763.6,0.0003589,2]
[314839148,1708582273324,-1457.97,0.0003589,2]
[314839149,1708582273333,-944.52,0.0003589,2]
[314839150,1708582273342,-507.15397464,0.0003589,2]
[314839151,1708582273351,-2620.53,0.0003589,2]
[314839152,1708582273360,-1384.58,0.0003589,2]
[314839153,1708582273370,-500.0,0.0003589,2]
[314839154,1708582273379,-2353.43,0.0003589,2]
[314839155,1708582273388,-500.0,0.0003589,2]
[314839156,1708582273397,-500.0,0.0003589,2]
[314839157,1708582273407,-3710.89,0.0003589,2]
[314839158,1708582273416,-500.0,0.0003589,2]
[314839159,1708582273425,-500.0,0.0003589,2]
[314839160,1708582273434,-1296.44,0.0003589,2]
[314839161,1708582273443,-500.0,0.0003589,2]
[314839162,1708582273453,-652.83,0.0003589,2]
[314839163,1708582273462,-3077.14,0.0003589,2]
[314839164,1708582273471,-981.21,0.0003589,2]
[314839165,1708582273481,-629.38,0.0003589,2]
[314839166,1708582273490,-1852.28,0.0003589,2]
[314839167,1708582273499,-1446.25,0.0003589,2]
[314839168,1708582273508,-500.0,0.0003589,2]
[314839169,1708582273518,-4124.48,0.0003589,2]
[314839170,1708582273527,-1020.58,0.0003589,2]
[314839171,1708582273537,-1020.45,0.0003589,2]
[314839172,1708582273546,-500.0,0.0003589,2]
[314839173,1708582273555,-7314.29,0.0003589,2]
[314839174,1708582273564,-1611.57,0.0003589,2]
[314839175,1708582273573,-1344.82,0.0003589,2]
[314839176,1708582273583,-341.0,0.0003589,2]
[314839177,1708582273592,-103594.0,0.000359,2]
[314839178,1708582273601,-1218.98770575,0.00035906,8]
[314839179,1708582273610,-2000.0,0.00035959,2]
[314839180,1708582273621,-152.0,0.00035979,6]
[314839181,1708582273630,-15794.37634663,0.00036,2]
[314839182,1708582273639,-500.0,0.00036,2]
[314839183,1708582273649,-300.0,0.00036,37]
[314839184,1708582273658,-214.4088,0.00036,4]
[314839185,1708582273667,-4952.49233965,0.00036,2]
[314839186,1708582273676,-1000.0,0.00036,5]
[314839187,1708582273686,-960.0,0.00036,5]
[314839188,1708582273695,-182.0,0.00036,2]
[314839189,1708582273704,-175.0,0.00036,2]
[314839190,1708582273713,-341.0,0.00036,2]
[314839191,1708582273722,-686.06,0.00036038,2]
[314839192,1708582273731,-500.0,0.00036038,2]
[314839193,1708582273740,-500.0,0.00036038,2]
[314839194,1708582273750,-500.0,0.00036038,2]
[314839195,1708582273759,-500.0,0.00036038,2]
[314839196,1708582273768,-500.0,0.00036038,2]
[314839197,1708582273777,-500.0,0.00036038,2]
[314839198,1708582273786,-500.0,0.00036038,2]
[314839199,1708582273796,-500.0,0.00036038,2]
[314839200,1708582273805,-500.0,0.00036038,2]
[314839201,1708582273814,-500.0,0.00036038,2]
[314839202,1708582273824,-500.0,0.00036038,2]
[314839203,1708582273833,-500.0,0.00036038,2]
[314839204,1708582273845,-500.0,0.00036038,2]
[314839205,1708582273854,-500.0,0.00036038,2]
[314839206,1708582273863,-500.0,0.00036038,2]
[314839207,1708582273872,-500.0,0.00036038,2]
[314839208,1708582273882,-500.0,0.00036038,2]
[314839209,1708582273891,-500.0,0.00036038,2]
[314839210,1708582273901,-500.0,0.00036038,2]
[314839211,1708582273910,-500.0,0.00036038,2]
[314839212,1708582273921,-500.0,0.00036038,2]
[314839213,1708582273930,-500.0,0.00036038,2]
[314839214,1708582273940,-500.0,0.00036038,2]
[314839215,1708582273949,-500.0,0.00036038,2]
[314839216,1708582273958,-500.0,0.00036038,2]
[314839217,1708582273967,-500.0,0.00036038,2]
[314839218,1708582273976,-500.0,0.00036038,2]
[314839219,1708582273985,-500.0,0.00036038,2]
[314839220,1708582273994,-500.0,0.00036038,2]
[314839221,1708582274003,-500.0,0.00036038,2]
[314839222,1708582274012,-500.0,0.00036038,2]
[314839223,1708582274021,-500.0,0.00036038,2]
[314839224,1708582274031,-500.0,0.00036038,2]
[314839225,1708582274040,-500.0,0.00036038,2]
[314839226,1708582274049,-500.0,0.00036038,2]
[314839227,1708582274058,-500.0,0.00036038,2]
[314839228,1708582274068,-500.0,0.00036038,2]
[314839229,1708582274077,-500.0,0.00036038,2]
[314839230,1708582274086,-500.0,0.00036038,2]
[314839231,1708582274096,-500.0,0.00036038,2]
[314839232,1708582274105,-500.0,0.00036038,2]
[314839233,1708582274114,-500.0,0.00036038,2]
[314839234,1708582274124,-500.0,0.00036038,2]
[314839235,1708582274133,-500.0,0.00036038,2]
[314839236,1708582274143,-500.0,0.00036038,2]
[314839237,1708582274152,-500.0,0.00036038,2]
[314839238,1708582274162,-500.0,0.00036038,2]
[314839239,1708582274171,-500.0,0.00036038,2]
[314839240,1708582274181,-500.0,0.00036038,2]
[314839241,1708582274190,-500.0,0.00036038,2]
[314839242,1708582274199,-500.0,0.00036038,2]
[314839243,1708582274209,-500.0,0.00036038,2]
[314839244,1708582274218,-500.0,0.00036038,2]
[314839245,1708582274227,-500.0,0.00036038,2]
[314839246,1708582274237,-500.0,0.00036038,2]
[314839247,1708582274246,-500.0,0.00036038,2]
[314839248,1708582274255,-500.0,0.00036038,2]
[314839249,1708582274264,-500.0,0.00036038,2]
[314839250,1708582274273,-500.0,0.00036038,2]
[314839251,1708582274282,-500.0,0.00036038,2]
[314839252,1708582274291,-500.0,0.00036038,2]
[314839253,1708582274301,-500.0,0.00036038,2]
[314839254,1708582274310,-500.0,0.00036038,2]
[314839255,1708582274319,-500.0,0.00036038,2]
[314839256,1708582274328,-500.0,0.00036038,2]
[314839257,1708582274337,-500.0,0.00036038,2]
[314839258,1708582274347,-500.0,0.00036038,2]
[314839259,1708582274356,-500.0,0.00036038,2]
[314839260,1708582274365,-500.0,0.00036038,2]
[314839261,1708582274374,-500.0,0.00036038,2]
[314839262,1708582274383,-500.0,0.00036038,2]
[314839263,1708582274393,-500.0,0.00036038,2]
[314839264,1708582274402,-400.0,0.00036038,2]
[314839265,1708582274411,-500.0,0.00036038,2]
[314839266,1708582274420,-500.0,0.00036038,2]